[Event "European Online Club-ch-B 2021"]
[Site "Online"]
[Date "2021.03.27"]
[Round "5.11"]
[White "Veinberg, Nimrod"]
[Black "Sasikiran, Krishnan"]
[Result "1/2-1/2"]
[ECO "D11"]
[WhiteElo "2404"]
[BlackElo "2647"]
[Annotator "ChessBase"]
[PlyCount "73"]
[EventDate "2021.03.27"]
[EventType "team-tourn"]
[EventCountry "NET"]
[SourceTitle "playchess.com"]
[Source "ChessBase"]
[SourceQuality "1"]
[TimeControl "900+5"]

1. d4 {[%emt 0:00:00]} d5 {[%emt 0:00:04]} 2. c4 {[%emt 0:00:02]} c6 {[%emt 0:00:02]} 3. Nf3 {[%emt 0:00:02]} Nf6 {[%emt 0:00:02]} 4. g3 {[%emt 0:00:02]} Bg4 {[%emt 0:00:29]} 5. Ne5 {[%emt 0:00:07]} Bf5 {[%emt 0:00:06]} 6. Nc3 {[%emt 0:00:14]} e6 {[%emt 0:00:27]} 7. Qb3 {[%emt 0:00:22]} Qb6 {[%emt 0:01:05]} 8. c5 {[%emt 0:00:03]} Qc7 {[%emt 0:00:32]} 9. Bf4 {[%emt 0:00:05]} Qc8 {[%emt 0:00:03]} 10. Bg2 {[%emt 0:00:09]} Nbd7 {[%emt 0:00:22]} 11. O-O {[%emt 0:00:05]} Be7 {[%emt 0:00:28]} 12. f3 {[%emt 0:00:13]} Bg6 {[%emt 0:03:39]} 13. g4 {[%emt 0:00:37]} Nxe5 {[%emt 0:00:50]} 14. Bxe5 {[%emt 0:00:00]} O-O {[%emt 0:00:10]} 15. Qd1 {[%emt 0:00:52]} Nd7 {[%emt 0:01:03]} 16. Bg3 {[%emt 0:00:04]} f5 {[%emt 0:00:55]} 17. Qd2 {[%emt 0:00:15]} b6 {[%emt 0:00:31]} 18. b4 {[%emt 0:00:04]} a5 {[%emt 0:00:12]} 19. a3 {[%emt 0:00:01]} axb4 {[%emt 0:00:33]} 20. axb4 {[%emt 0:00:00]} Rxa1 {[%emt 0:00:03]} 21. Rxa1 {[%emt 0:00:01]} bxc5 {[%emt 0:00:02]} 22. bxc5 {[%emt 0:00:00]} e5 {[%emt 0:00:03]} 23. gxf5 {[%emt 0:01:56]} Bxf5 {[%emt 0:00:57]} 24. e3 {[%emt 0:00:06]} exd4 {[%emt 0:00:43]} 25. exd4 {[%emt 0:00:00]} Bf6 {[%emt 0:00:04]} 26. Ra7 {[%emt 0:00:22]} Re8 {[%emt 0:00:47]} 27. Ne2 {[%emt 0:01:15]} Nf8 {[%emt 0:00:24]} 28. Nf4 {[%emt 0:00:22]} Ne6 {[%emt 0:00:09]} 29. Nxe6 {[%emt 0:00:23]} Qxe6 {[%emt 0:00:27]} 30. Bf2 {[%emt 0:01:00]} Qe2 {[%emt 0:00:53]} 31. Qxe2 {[%emt 0:00:18]} Rxe2 {[%emt 0:00:03]} 32. Rc7 {[%emt 0:00:49]} Rd2 {[%emt 0:00:07]} 33. Bf1 {[%emt 0:00:49]} Rd1 {[%emt 0:00:35]} 34. Kg2 {[%emt 0:00:04]} Rd2 {[%emt 0:00:03]} 35. Kg1 {[%emt 0:00:42]} Rd1 {[%emt 0:00:02]} 36. Kg2 {[%emt 0:00:01]} Rd2 {[%emt 0:00:02]} 37. Kg1 {[%emt 0:00:02]} 1/2-1/2

[Event "European Online Club-ch-B 2021"]
[Site "Online"]
[Date "2021.03.27"]
[Round "5.12"]
[White "Ragger, Markus"]
[Black "Zlatin, Alexander"]
[Result "1/2-1/2"]
[ECO "C42"]
[WhiteElo "2680"]
[BlackElo "2343"]
[Annotator "ChessBase"]
[PlyCount "88"]
[EventDate "2021.03.27"]
[EventType "team-tourn"]
[EventCountry "NET"]
[SourceTitle "playchess.com"]
[Source "ChessBase"]
[SourceQuality "1"]
[TimeControl "900+5"]

1. e4 {[%emt 0:00:00]} e5 {[%emt 0:00:08]} 2. Nf3 {[%emt 0:00:02]} Nf6 {[%emt 0:00:02]} 3. Nxe5 {[%emt 0:00:03]} d6 {[%emt 0:00:05]} 4. Nc4 {[%emt 0:00:01]} Nxe4 {[%emt 0:00:19]} 5. Qe2 {[%emt 0:00:03]} Qe7 {[%emt 0:00:20]} 6. Ne3 {[%emt 0:00:03]} c6 {[%emt 0:01:43]} 7. b3 {[%emt 0:00:04]} Nd7 {[%emt 0:01:25]} 8. Bb2 {[%emt 0:00:33]} Ndf6 {[%emt 0:00:39]} 9. g3 {[%emt 0:01:07]} d5 {[%emt 0:00:18]} 10. Bg2 {[%emt 0:00:02]} h5 {[%emt 0:00:39]} 11. d3 {[%emt 0:00:16]} Nd6 {[%emt 0:00:20]} 12. Nd2 {[%emt 0:00:03]} Nf5 {[%emt 0:00:39]} 13. Nf3 {[%emt 0:04:04]} Nxe3 {[%emt 0:01:04]} 14. Qxe3 {[%emt 0:00:04]} Qxe3+ {[%emt 0:00:13]} 15. fxe3 {[%emt 0:00:02]} Bb4+ {[%emt 0:00:36]} 16. Ke2 {[%emt 0:00:21]} Be7 {[%emt 0:00:09]} 17. Rhf1 {[%emt 0:00:49]} Bg4 {[%emt 0:00:18]} 18. h3 {[%emt 0:00:53]} Bxf3+ {[%emt 0:00:14]} 19. Rxf3 {[%emt 0:00:09]} O-O {[%emt 0:00:17]} 20. Rf5 {[%emt 0:00:55]} Nh7 {[%emt 0:00:46]} 21. g4 {[%emt 0:01:06]} h4 {[%emt 0:00:32]} 22. c4 {[%emt 0:00:44]} dxc4 {[%emt 0:00:20]} 23. bxc4 {[%emt 0:00:03]} g6 {[%emt 0:00:06]} 24. Rff1 {[%emt 0:00:27]} Rfe8 {[%emt 0:00:56]} 25. Rab1 {[%emt 0:00:11]} Bg5 {[%emt 0:00:12]} 26. Bd4 {[%emt 0:00:58]} Re7 {[%emt 0:00:48]} 27. Rb3 {[%emt 0:00:24]} Rae8 {[%emt 0:00:17]} 28. Be4 {[%emt 0:00:19]} b6 {[%emt 0:00:19]} 29. c5 {[%emt 0:00:02]} bxc5 {[%emt 0:00:12]} 30. Bxc5 {[%emt 0:00:02]} Re5 {[%emt 0:00:02]} 31. Bd4 {[%emt 0:00:20]} Ra5 {[%emt 0:00:17]} 32. a3 {[%emt 0:00:12]} c5 {[%emt 0:00:04]} 33. Bc3 {[%emt 0:00:46]} Ra6 {[%emt 0:00:03]} 34. Rb7 {[%emt 0:00:03]} Nf6 {[%emt 0:00:13]} 35. Bxf6 {[%emt 0:00:08]} Rxf6 {[%emt 0:00:14]} 36. Rxf6 {[%emt 0:00:16]} Bxf6 {[%emt 0:00:00]} 37. Rxa7 {[%emt 0:00:53]} Bg5 {[%emt 0:00:33]} 38. Rc7 {[%emt 0:00:18]} Re5 {[%emt 0:00:16]} 39. Rc8+ {[%emt 0:00:58]} Kg7 {[%emt 0:00:05]} 40. Rc7 {[%emt 0:00:06]} Kf8 {[%emt 0:00:11]} 41. Rc8+ {[%emt 0:00:11]} Ke7 {[%emt 0:00:16]} 42. Rc7+ {[%emt 0:00:07]} Kf8 {[%emt 0:00:02]} 43. Rc8+ {[%emt 0:00:09]} Ke7 {[%emt 0:00:02]} 44. Rc7+ {[%emt 0:00:01]} Kf8 {[%emt 0:00:02]} 1/2-1/2

[Event "European Online Club-ch-B 2021"]
[Site "Online"]
[Date "2021.03.27"]
[Round "5.13"]
[White "Efimov, Igor"]
[Black "Brunner, Nicolas"]
[Result "0-1"]
[ECO "D45"]
[WhiteElo "2416"]
[BlackElo "2418"]
[Annotator "NA"]
[PlyCount "56"]
[EventDate "2021.03.27"]
[EventType "team-tourn"]
[EventCountry "NET"]
[SourceTitle "playchess.com"]
[Source "ChessBase"]
[SourceQuality "1"]
[TimeControl "900+5"]

1. d4 {[%emt 0:00:00]} d5 {[%emt 0:00:04]} 2. Nf3 {[%emt 0:00:04]} Nf6 {[%emt 0:00:01]} 3. c4 {[%emt 0:00:07]} e6 {[%emt 0:00:02]} 4. Nc3 {[%emt 0:00:03]} c6 {[%emt 0:00:01]} 5. e3 {[%emt 0:00:07]} Nbd7 {[%emt 0:00:02]} 6. Qc2 {[%emt 0:00:05]} Bd6 {[%emt 0:00:01]} 7. Bd2 {[%emt 0:00:05]} O-O {[%emt 0:00:02]} 8. O-O-O {[%emt 0:00:03]} b5 {[%emt 0:00:03]} 9. c5 {[%emt 0:00:03]} Bc7 {[%emt 0:00:03]} 10. Bd3 {[%emt 0:00:10]} a5 {[%emt 0:00:02]} 11. e4 {[%emt 0:00:07]} dxe4 {[%emt 0:00:03]} 12. Nxe4 {[%emt 0:00:03]} Ba6 {[%emt 0:01:02]} 13. Ne5 {[%emt 0:00:13]} Nxe5 {[%emt 0:01:22]} 14. dxe5 {[%emt 0:00:02]} Bxe5 {[%emt 0:00:22]} 15. Bg5 {[%emt 0:00:39]} Qc7 {[%emt 0:01:13]} 16. Nxf6+ {[%emt 0:00:10]} gxf6 {[%emt 0:00:07]} 17. Be3 {[%emt 0:00:36]} Kh8 {[%emt 0:02:15]} 18. Qe2 {[%emt 0:00:44]} f5 {[%emt 0:00:59]} 19. Qh5 {[%emt 0:00:26]} Rg8 {[%emt 0:00:16]} 20. g4 {[%emt 0:01:27]} Rxg4 {[%emt 0:00:17]} 21. Bxf5 {[%emt 0:00:43]} exf5 {[%emt 0:00:08]} 22. Qxf5 {[%emt 0:00:02]} Bc8 {[%emt 0:01:00]} 23. Qh5 {[%emt 0:00:11]} Be6 {[%emt 0:00:31]} 24. h3 {[%emt 0:00:22]} Rg6 {[%emt 0:01:05]} 25. Kb1 {[%emt 0:00:52]} Bd5 {[%emt 0:00:35]} 26. Rhe1 {[%emt 0:00:29]} Bg7 {[%emt 0:00:25]} 27. f4 {[%emt 0:00:11]} Rg2 {[%emt 0:00:11]} 28. Rg1 {[%emt 0:01:10]} Be4+ {[%emt 0:00:29]} 0-1

[Event "European Online Club-ch-B 2021"]
[Site "Online"]
[Date "2021.03.27"]
[Round "5.14"]
[White "Mathieu, Phileas"]
[Black "Bagheri, Amir"]
[Result "1-0"]
[ECO "B11"]
[WhiteElo "2240"]
[BlackElo "2348"]
[Annotator "NA"]
[PlyCount "91"]
[EventDate "2021.03.27"]
[EventType "team-tourn"]
[EventCountry "NET"]
[SourceTitle "playchess.com"]
[Source "ChessBase"]
[SourceQuality "1"]
[TimeControl "900+5"]

1. e4 {[%emt 0:00:00]} c6 {[%emt 0:00:04]} 2. Nc3 {[%emt 0:00:03]} d5 {[%emt 0:00:03]} 3. Nf3 {[%emt 0:00:02]} Bg4 {[%emt 0:00:05]} 4. h3 {[%emt 0:00:06]} Bxf3 {[%emt 0:00:02]} 5. Qxf3 {[%emt 0:00:04]} e6 {[%emt 0:00:02]} 6. g3 {[%emt 0:00:12]} Nf6 {[%emt 0:00:03]} 7. Bg2 {[%emt 0:00:05]} dxe4 {[%emt 0:00:24]} 8. Nxe4 {[%emt 0:00:04]} Nxe4 {[%emt 0:00:04]} 9. Qxe4 {[%emt 0:00:01]} Qd5 {[%emt 0:00:53]} 10. d4 {[%emt 0:00:27]} Nd7 {[%emt 0:01:04]} 11. O-O {[%emt 0:00:16]} Qxe4 {[%emt 0:00:03]} 12. Bxe4 {[%emt 0:00:03]} Nf6 {[%emt 0:00:20]} 13. Bf3 {[%emt 0:00:04]} Rd8 {[%emt 0:00:12]} 14. Be3 {[%emt 0:00:26]} h5 {[%emt 0:01:03]} 15. c4 {[%emt 0:00:35]} a6 {[%emt 0:00:26]} 16. Rab1 {[%emt 0:00:17]} Bb4 {[%emt 0:01:45]} 17. a3 {[%emt 0:00:15]} Be7 {[%emt 0:00:27]} 18. b4 {[%emt 0:00:05]} O-O {[%emt 0:00:09]} 19. Kg2 {[%emt 0:00:16]} Rd7 {[%emt 0:00:13]} 20. a4 {[%emt 0:00:47]} Rc8 {[%emt 0:00:21]} 21. Rfc1 {[%emt 0:00:47]} g6 {[%emt 0:01:09]} 22. b5 {[%emt 0:02:42]} axb5 {[%emt 0:01:17]} 23. axb5 {[%emt 0:00:41]} c5 {[%emt 0:01:04]} 24. dxc5 {[%emt 0:00:19]} Bxc5 {[%emt 0:00:04]} 25. Bg5 {[%emt 0:00:28]} Nh7 {[%emt 0:00:22]} 26. Bf4 {[%emt 0:00:57]} b6 {[%emt 0:00:28]} 27. Rd1 {[%emt 0:00:08]} Rcd8 {[%emt 0:01:10]} 28. Rxd7 {[%emt 0:01:35]} Rxd7 {[%emt 0:00:02]} 29. Bc6 {[%emt 0:00:39]} Ra7 {[%emt 0:00:30]} 30. Be3 {[%emt 0:00:46]} Bxe3 {[%emt 0:00:17]} 31. fxe3 {[%emt 0:00:02]} Ra2+ {[%emt 0:00:01]} 32. Kf3 {[%emt 0:00:32]} Rc2 {[%emt 0:00:09]} 33. Ke4 {[%emt 0:02:08]} Rxc4+ {[%emt 0:01:21]} 34. Ke5 {[%emt 0:00:02]} Rc3 {[%emt 0:00:24]} 35. Kd6 {[%emt 0:00:33]} Nf6 {[%emt 0:00:57]} 36. e4 {[%emt 0:00:34]} Rc5 {[%emt 0:00:32]} 37. Kc7 {[%emt 0:00:22]} Nxe4 {[%emt 0:00:03]} 38. Kxb6 {[%emt 0:00:05]} Rc4 {[%emt 0:00:01]} 39. Bxe4 {[%emt 0:00:27]} Rxe4 {[%emt 0:00:01]} 40. Kc5 {[%emt 0:00:02]} Re5+ {[%emt 0:00:10]} 41. Kc6 {[%emt 0:00:02]} Re3 {[%emt 0:00:16]} 42. b6 {[%emt 0:00:03]} Rc3+ {[%emt 0:00:07]} 43. Kd7 {[%emt 0:00:03]} Kf8 {[%emt 0:00:16]} 44. b7 {[%emt 0:00:04]} Rd3+ {[%emt 0:00:01]} 45. Kc7 {[%emt 0:00:03]} Rc3+ {[%emt 0:00:02]} 46. Kb6 {[%emt 0:00:07]} 1-0

[Event "European Online Club-ch-B 2021"]
[Site "Online"]
[Date "2021.03.27"]
[Round "5.15"]
[White "Villegas, Pierre"]
[Black "Adrian, Leopold"]
[Result "1-0"]
[ECO "A59"]
[WhiteElo "2367"]
[BlackElo "2009"]
[Annotator "NA"]
[PlyCount "47"]
[EventDate "2021.03.27"]
[EventType "team-tourn"]
[EventCountry "NET"]
[SourceTitle "playchess.com"]
[Source "ChessBase"]
[SourceQuality "1"]
[TimeControl "900+5"]

1. d4 {[%emt 0:00:00]} Nf6 {[%emt 0:00:07]} 2. c4 {[%emt 0:00:02]} c5 {[%emt 0:00:02]} 3. d5 {[%emt 0:00:07]} b5 {[%emt 0:00:01]} 4. cxb5 {[%emt 0:00:05]} a6 {[%emt 0:00:05]} 5. bxa6 {[%emt 0:00:01]} g6 {[%emt 0:00:03]} 6. Nc3 {[%emt 0:00:03]} Bxa6 {[%emt 0:00:04]} 7. e4 {[%emt 0:00:04]} Bxf1 {[%emt 0:00:08]} 8. Kxf1 {[%emt 0:00:01]} d6 {[%emt 0:00:10]} 9. g3 {[%emt 0:00:02]} Bg7 {[%emt 0:00:03]} 10. Kg2 {[%emt 0:00:02]} O-O {[%emt 0:00:03]} 11. Nf3 {[%emt 0:00:01]} Nbd7 {[%emt 0:00:13]} 12. a4 {[%emt 0:00:02]} Qb6 {[%emt 0:00:23]} 13. Qe2 {[%emt 0:00:03]} Ne8 {[%emt 0:00:24]} 14. Bg5 {[%emt 0:01:09]} f6 {[%emt 0:00:22]} 15. Bd2 {[%emt 0:00:37]} Nc7 {[%emt 0:00:18]} 16. Rhb1 {[%emt 0:00:26]} Qb7 {[%emt 0:01:28]} 17. Kg1 {[%emt 0:05:06]} Kh8 {[%emt 0:03:55]} 18. a5 {[%emt 0:00:37]} f5 {[%emt 0:00:54]} 19. Ng5 {[%emt 0:00:07]} h6 {[%emt 0:02:49]} 20. Nf3 {[%emt 0:01:05]} Rf6 {[%emt 0:01:28]} 21. exf5 {[%emt 0:01:31]} Nxd5 {[%emt 0:00:29]} 22. Qe4 {[%emt 0:01:31]} Rxf5 {[%emt 0:00:21]} 23. Nh4 {[%emt 0:00:05]} N7f6 {[%emt 0:00:38]} 24. Nxg6+ {[%emt 0:00:09]} 1-0

[Event "European Online Club-ch-B 2021"]
[Site "Online"]
[Date "2021.03.27"]
[Round "5.16"]
[White "Venard, Paul-Andre"]
[Black "Meylan, Andre"]
[Result "0-1"]
[ECO "E46"]
[WhiteElo "2048"]
[BlackElo "2205"]
[Annotator "NA"]
[PlyCount "84"]
[EventDate "2021.03.27"]
[EventType "team-tourn"]
[EventCountry "NET"]
[SourceTitle "playchess.com"]
[Source "ChessBase"]
[SourceQuality "1"]
[TimeControl "900+5"]

1. d4 {[%emt 0:00:00]} e6 {[%emt 0:00:04]} 2. c4 {[%emt 0:00:03]} Nf6 {[%emt 0:00:01]} 3. Nc3 {[%emt 0:00:10]} Bb4 {[%emt 0:00:02]} 4. e3 {[%emt 0:00:01]} O-O {[%emt 0:00:16]} 5. Nge2 {[%emt 0:00:04]} d5 {[%emt 0:00:03]} 6. a3 {[%emt 0:00:04]} Bd6 {[%emt 0:00:03]} 7. c5 {[%emt 0:00:04]} Be7 {[%emt 0:00:02]} 8. b4 {[%emt 0:00:04]} b6 {[%emt 0:00:07]} 9. Nf4 {[%emt 0:00:09]} c6 {[%emt 0:00:39]} 10. Be2 {[%emt 0:00:18]} Nbd7 {[%emt 0:00:07]} 11. O-O {[%emt 0:01:30]} a5 {[%emt 0:00:02]} 12. Bd2 {[%emt 0:00:46]} Ba6 {[%emt 0:00:47]} 13. Bxa6 {[%emt 0:00:35]} Rxa6 {[%emt 0:00:00]} 14. Nd3 {[%emt 0:00:47]} Qc7 {[%emt 0:01:06]} 15. Qe2 {[%emt 0:03:43]} Rfa8 {[%emt 0:00:04]} 16. Rab1 {[%emt 0:00:17]} axb4 {[%emt 0:01:15]} 17. axb4 {[%emt 0:00:10]} bxc5 {[%emt 0:00:19]} 18. bxc5 {[%emt 0:00:10]} e5 {[%emt 0:00:44]} 19. f3 {[%emt 0:02:57]} Bf8 {[%emt 0:00:21]} 20. Rb3 {[%emt 0:01:55]} g6 {[%emt 0:00:39]} 21. Rfb1 {[%emt 0:00:03]} Ra1 {[%emt 0:00:10]} 22. Be1 {[%emt 0:00:18]} Rxb1 {[%emt 0:01:48]} 23. Nxb1 {[%emt 0:00:07]} e4 {[%emt 0:01:23]} 24. Nc1 {[%emt 0:01:55]} Bh6 {[%emt 0:02:20]} 25. f4 {[%emt 0:00:05]} Rb8 {[%emt 0:01:02]} 26. Qb2 {[%emt 0:00:33]} Rxb3 {[%emt 0:00:25]} 27. Qxb3 {[%emt 0:00:02]} g5 {[%emt 0:00:02]} 28. fxg5 {[%emt 0:00:19]} Bxg5 {[%emt 0:00:00]} 29. Bg3 {[%emt 0:00:06]} Qa5 {[%emt 0:00:16]} 30. h3 {[%emt 0:00:02]} h5 {[%emt 0:00:59]} 31. Ne2 {[%emt 0:00:02]} h4 {[%emt 0:00:05]} 32. Bf2 {[%emt 0:00:01]} Kg7 {[%emt 0:00:18]} 33. Qc2 {[%emt 0:00:06]} Nh5 {[%emt 0:00:34]} 34. Nd2 {[%emt 0:00:06]} Ng3 {[%emt 0:00:17]} 35. Bxg3 {[%emt 0:00:10]} Bxe3+ {[%emt 0:00:29]} 36. Bf2 {[%emt 0:00:02]} Bxd2 {[%emt 0:00:31]} 37. Bxh4 {[%emt 0:00:07]} Be3+ {[%emt 0:00:04]} 38. Kh2 {[%emt 0:00:04]} f5 {[%emt 0:00:15]} 39. Bg3 {[%emt 0:00:05]} Nf6 {[%emt 0:00:22]} 40. Qb2 {[%emt 0:00:12]} Qd2 {[%emt 0:00:01]} 41. Qxd2 {[%emt 0:00:05]} Bxd2 {[%emt 0:00:00]} 42. Be5 {[%emt 0:00:05]} Kg6 {[%emt 0:00:06]} 0-1

[Event "European Online Club-ch-B 2021"]
[Site "Online"]
[Date "2021.03.27"]
[Round "5.17"]
[White "Demidov, Mikhail"]
[Black "Sorensen, Hampus"]
[Result "1-0"]
[ECO "A13"]
[WhiteElo "2523"]
[BlackElo "2395"]
[Annotator "ChessBase"]
[PlyCount "125"]
[EventDate "2021.03.27"]
[EventType "team-tourn"]
[EventCountry "NET"]
[SourceTitle "playchess.com"]
[Source "ChessBase"]
[SourceQuality "1"]
[TimeControl "900+5"]

1. Nf3 {[%emt 0:00:00]} d5 {[%emt 0:00:08]} 2. g3 {[%emt 0:00:03]} Nd7 {[%emt 0:00:03]} 3. c4 {[%emt 0:00:23]} dxc4 {[%emt 0:00:26]} 4. Qa4 {[%emt 0:00:03]} a6 {[%emt 0:01:35]} 5. Qxc4 {[%emt 0:00:12]} b5 {[%emt 0:00:04]} 6. Qc2 {[%emt 0:00:02]} Bb7 {[%emt 0:00:04]} 7. Bg2 {[%emt 0:00:02]} Ngf6 {[%emt 0:00:06]} 8. O-O {[%emt 0:00:03]} e6 {[%emt 0:00:16]} 9. a4 {[%emt 0:00:22]} Be7 {[%emt 0:00:22]} 10. Na3 {[%emt 0:00:12]} O-O {[%emt 0:00:19]} 11. d3 {[%emt 0:00:06]} Nb6 {[%emt 0:00:57]} 12. axb5 {[%emt 0:00:19]} axb5 {[%emt 0:00:06]} 13. Bf4 {[%emt 0:00:19]} b4 {[%emt 0:03:35]} 14. Bxc7 {[%emt 0:01:00]} Qc8 {[%emt 0:00:28]} 15. Bxb6 {[%emt 0:00:05]} bxa3 {[%emt 0:00:03]} 16. Qxc8 {[%emt 0:00:02]} Rfxc8 {[%emt 0:00:02]} 17. bxa3 {[%emt 0:00:03]} Rxa3 {[%emt 0:00:01]} 18. Rxa3 {[%emt 0:00:29]} Bxa3 {[%emt 0:00:03]} 19. Ne5 {[%emt 0:00:28]} Bxg2 {[%emt 0:00:06]} 20. Kxg2 {[%emt 0:00:01]} Rc1 {[%emt 0:00:11]} 21. Rxc1 {[%emt 0:00:08]} Bxc1 {[%emt 0:00:02]} 22. e4 {[%emt 0:00:10]} Bb2 {[%emt 0:00:30]} 23. Nc4 {[%emt 0:00:06]} Bc3 {[%emt 0:00:03]} 24. f4 {[%emt 0:00:18]} Nd7 {[%emt 0:00:15]} 25. Ba7 {[%emt 0:00:17]} Kf8 {[%emt 0:00:18]} 26. Kf3 {[%emt 0:00:06]} Ke7 {[%emt 0:00:06]} 27. Be3 {[%emt 0:00:17]} Bb4 {[%emt 0:00:41]} 28. Ke2 {[%emt 0:00:16]} f5 {[%emt 0:00:13]} 29. Bc1 {[%emt 0:00:09]} Nc5 {[%emt 0:00:21]} 30. Ke3 {[%emt 0:00:14]} g6 {[%emt 0:00:22]} 31. Ne5 {[%emt 0:00:11]} Ke8 {[%emt 0:00:27]} 32. Nc6 {[%emt 0:00:11]} Bc3 {[%emt 0:00:10]} 33. Ba3 {[%emt 0:00:04]} Nd7 {[%emt 0:00:07]} 34. Na7 {[%emt 0:00:48]} Ba5 {[%emt 0:00:52]} 35. Nb5 {[%emt 0:00:25]} Nf6 {[%emt 0:00:14]} 36. Kf3 {[%emt 0:00:12]} Bb6 {[%emt 0:00:06]} 37. Nd6+ {[%emt 0:00:28]} Kd7 {[%emt 0:00:03]} 38. Nf7 {[%emt 0:00:02]} Bd4 {[%emt 0:00:21]} 39. h3 {[%emt 0:00:07]} Ke8 {[%emt 0:01:28]} 40. Ng5 {[%emt 0:00:13]} fxe4+ {[%emt 0:00:01]} 41. dxe4 {[%emt 0:00:04]} e5 {[%emt 0:00:02]} 42. f5 {[%emt 0:00:19]} Bc3 {[%emt 0:00:27]} 43. g4 {[%emt 0:00:09]} Bd2 {[%emt 0:00:14]} 44. Ne6 {[%emt 0:00:05]} Kf7 {[%emt 0:00:56]} 45. Bd6 {[%emt 0:01:41]} Nd7 {[%emt 0:00:24]} 46. Ke2 {[%emt 0:00:07]} Bc1 {[%emt 0:00:09]} 47. Kf3 {[%emt 0:00:43]} h5 {[%emt 0:00:15]} 48. g5 {[%emt 0:01:06]} Bd2 {[%emt 0:00:36]} 49. Ke2 {[%emt 0:00:04]} Bc1 {[%emt 0:00:02]} 50. h4 {[%emt 0:00:05]} Bb2 {[%emt 0:00:09]} 51. Nd8+ {[%emt 0:00:13]} Kg7 {[%emt 0:00:13]} 52. Be7 {[%emt 0:01:28]} Bc1 {[%emt 0:00:12]} 53. Bd6 {[%emt 0:01:40]} gxf5 {[%emt 0:00:02]} 54. exf5 {[%emt 0:00:06]} e4 {[%emt 0:00:02]} 55. Ne6+ {[%emt 0:00:33]} Kf7 {[%emt 0:00:04]} 56. Nf4 {[%emt 0:00:08]} Bxf4 {[%emt 0:00:07]} 57. Bxf4 {[%emt 0:00:01]} Nc5 {[%emt 0:00:08]} 58. Ke3 {[%emt 0:00:05]} Nd3 {[%emt 0:00:04]} 59. Kxe4 {[%emt 0:00:04]} Nc5+ {[%emt 0:00:01]} 60. Kd5 {[%emt 0:00:04]} Nd3 {[%emt 0:00:02]} 61. Be5 {[%emt 0:00:06]} Nf2 {[%emt 0:00:10]} 62. g6+ {[%emt 0:00:02]} Ke7 {[%emt 0:00:02]} 63. f6+ {[%emt 0:00:02]} 1-0

[Event "European Online Club-ch-B 2021"]
[Site "Online"]
[Date "2021.03.27"]
[Round "5.18"]
[White "Agrest, Inna"]
[Black "Baltag, Iulian"]
[Result "1-0"]
[ECO "B96"]
[WhiteElo "2285"]
[BlackElo "2393"]
[Annotator "NA"]
[PlyCount "57"]
[EventDate "2021.03.27"]
[EventType "team-tourn"]
[EventCountry "NET"]
[SourceTitle "playchess.com"]
[Source "ChessBase"]
[SourceQuality "1"]
[TimeControl "900+5"]

1. e4 {[%emt 0:00:00]} c5 {[%emt 0:00:04]} 2. Nf3 {[%emt 0:00:02]} d6 {[%emt 0:00:02]} 3. d4 {[%emt 0:00:02]} cxd4 {[%emt 0:00:01]} 4. Nxd4 {[%emt 0:00:00]} Nf6 {[%emt 0:00:02]} 5. Nc3 {[%emt 0:00:04]} a6 {[%emt 0:00:03]} 6. Bg5 {[%emt 0:00:03]} Nbd7 {[%emt 0:00:03]} 7. Qe2 {[%emt 0:00:03]} e6 {[%emt 0:00:54]} 8. O-O-O {[%emt 0:00:05]} Qc7 {[%emt 0:00:03]} 9. f4 {[%emt 0:00:14]} b5 {[%emt 0:00:24]} 10. a3 {[%emt 0:00:30]} Bb7 {[%emt 0:00:07]} 11. Kb1 {[%emt 0:00:03]} Be7 {[%emt 0:00:29]} 12. g4 {[%emt 0:00:35]} h6 {[%emt 0:00:40]} 13. Bxf6 {[%emt 0:00:21]} Nxf6 {[%emt 0:00:17]} 14. Bg2 {[%emt 0:00:10]} Nd7 {[%emt 0:00:27]} 15. h4 {[%emt 0:00:46]} Nb6 {[%emt 0:00:11]} 16. g5 {[%emt 0:00:33]} Nc4 {[%emt 0:00:08]} 17. g6 {[%emt 0:02:07]} Nxa3+ {[%emt 0:02:38]} 18. bxa3 {[%emt 0:01:51]} Qxc3 {[%emt 0:00:06]} 19. gxf7+ {[%emt 0:00:18]} Kxf7 {[%emt 0:00:03]} 20. Rd3 {[%emt 0:01:15]} Qc4 {[%emt 0:00:17]} 21. f5 {[%emt 0:00:28]} Bf6 {[%emt 0:02:21]} 22. fxe6+ {[%emt 0:02:25]} Kg8 {[%emt 0:00:26]} 23. e5 {[%emt 0:00:41]} dxe5 {[%emt 0:00:45]} 24. Bxb7 {[%emt 0:00:20]} Rb8 {[%emt 0:00:01]} 25. e7 {[%emt 0:00:47]} Bxe7 {[%emt 0:00:36]} 26. Qg2 {[%emt 0:00:31]} Rxb7 {[%emt 0:01:49]} 27. Qxb7 {[%emt 0:00:00]} Bf6 {[%emt 0:00:10]} 28. Nf5 {[%emt 0:00:57]} Kh7 {[%emt 0:00:16]} 29. Nd6 {[%emt 0:00:07]} 1-0

[Event "European Online Club-ch-B 2021"]
[Site "Online"]
[Date "2021.03.27"]
[Round "5.19"]
[White "Naudion, Gregoire"]
[Black "Rasti, Arvin"]
[Result "1-0"]
[ECO "E81"]
[WhiteElo "2146"]
[BlackElo "2195"]
[Annotator "NA"]
[PlyCount "43"]
[EventDate "2021.03.27"]
[EventType "team-tourn"]
[EventCountry "NET"]
[SourceTitle "playchess.com"]
[Source "ChessBase"]
[SourceQuality "1"]
[TimeControl "900+5"]

1. d4 {[%emt 0:00:00]} Nf6 {[%emt 0:00:07]} 2. c4 {[%emt 0:00:04]} c5 {[%emt 0:00:07]} 3. d5 {[%emt 0:00:01]} e6 {[%emt 0:00:05]} 4. Nc3 {[%emt 0:00:03]} d6 {[%emt 0:00:06]} 5. e4 {[%emt 0:00:04]} g6 {[%emt 0:00:07]} 6. f3 {[%emt 0:01:39]} Bg7 {[%emt 0:00:13]} 7. Bg5 {[%emt 0:00:02]} O-O {[%emt 0:00:12]} 8. Qd2 {[%emt 0:00:03]} Re8 {[%emt 0:00:25]} 9. Nge2 {[%emt 0:00:06]} Na6 {[%emt 0:01:05]} 10. dxe6 {[%emt 0:01:27]} Bxe6 {[%emt 0:00:14]} 11. Nf4 {[%emt 0:00:05]} Nc7 {[%emt 0:00:20]} 12. O-O-O {[%emt 0:01:57]} Re7 {[%emt 0:03:32]} 13. e5 {[%emt 0:00:15]} Rd7 {[%emt 0:01:58]} 14. exf6 {[%emt 0:00:08]} Bf8 {[%emt 0:00:04]} 15. Nfd5 {[%emt 0:01:22]} Bxd5 {[%emt 0:00:37]} 16. Nxd5 {[%emt 0:00:12]} Ne6 {[%emt 0:00:07]} 17. h4 {[%emt 0:01:51]} Nxg5 {[%emt 0:01:39]} 18. hxg5 {[%emt 0:00:05]} a6 {[%emt 0:00:11]} 19. g3 {[%emt 0:00:57]} b5 {[%emt 0:00:15]} 20. Rxh7 {[%emt 0:01:17]} Kxh7 {[%emt 0:00:11]} 21. Qh2+ {[%emt 0:00:06]} Kg8 {[%emt 0:00:05]} 22. Bd3 {[%emt 0:00:02]} 1-0